bitfinex/quotes_ETHUSD_20240820
["timestamp","ask_amount","ask_price","bid_price","bid_amount"]
[1724162501640,3.79195,2637.2,2636.1,0.758702]
[1724162501843,3.79167,2637.4,2636.8,3.79234]
[1724162502177,3.79044,2638.3,2637.4,3.79151]
[1724162502178,3.79046,2638.3,2637.4,3.79151]
[1724162502313,3.79047,2638.2,2637.4,3.79151]
[1724162502518,3.79092,2637.9,2637.2,3.79183]
[1724162502829,3.791,2637.9,2637.2,3.79184]
[1724162503026,2.4846,2638.6,2637.5,3.79141]
[1724162503027,3.79039,2638.3,2637.5,3.79141]
[1724162503443,3.79062,2638.1,2637.5,3.79141]
[1724162503668,3.79062,2638.1,2637.3,3.79171]
[1724162503830,7.58135,2638.1,2637.5,3.79143]
[1724162504034,3.79079,2638.0,2637.3,3.79171]
[1724162504363,3.79062,2638.1,2637.4,0.4170894]
[1724162504529,3.79037,2638.3,2637.4,0.4170894]
[1724162504530,3.79037,2638.3,2637.6,3.79121]
[1724162504734,3.79063,2638.1,2637.4,0.4170894]
[1724162504945,3.79105,2637.8,2637.4,0.4170894]
[1724162505273,3.7909,2637.9,2637.1,3.79197]
[1724162505568,3.7909,2637.9,2637.3,3.79163]
[1724162505725,3.79035,2638.3,2637.1,3.79192]
[1724162505929,2.4846,2638.6,2637.2,2.41591933]
[1724162506226,2.4846,2638.6,2637.9,3.79078]
[1724162506227,3.78991,2638.6,2637.9,3.79078]
[1724162506433,3.78952,2638.9,2638.2,3.79037]
[1724162506729,2.3581,2639.0,2638.0,3.79069]
[1724162506970,3.79018,2638.4,2638.0,0.988218]
[1724162507190,7.57986,2638.6,2637.8,3.79093]
[1724162507326,3.79004,2638.5,2637.9,3.79079]
[1724162507734,3.78966,2638.8,2638.1,3.79048]
[1724162507985,3.78966,2638.8,2638.2,3.79033]
[1724162508134,3.78983,2638.7,2638.0,3.79065]
[1724162508340,3.7899,2638.6,2638.1,0.379065]
[1724162508712,3.78947,2638.9,2637.7,3.0]
[1724162508886,3.78975,2638.7,2637.7,3.0]
[1724162509031,3.78975,2638.7,2637.4,2.4559]
[1724162509032,3.79043,2638.3,2637.6,3.79125]
[1724162509237,3.79043,2638.3,2637.4,9.24744]
[1724162509238,3.79069,2638.1,2637.4,9.24739]
[1724162509436,3.79043,2638.3,2637.6,3.79124]
[1724162509437,3.79038,2638.3,2637.6,3.79124]
[1724162509633,3.78983,2638.7,2638.0,3.79066]
[1724162509870,3.78892,2639.3,2638.1,2.2852]
[1724162510079,3.78918,2639.1,2638.4,3.79007]
[1724162510676,3.78941,2639.0,2638.4,3.79007]
[1724162510875,3.78984,2638.7,2638.1,2.2852]
[1724162511175,3.78984,2638.7,2638.2,0.607584]
[1724162512040,3.78952,2638.9,2638.2,4.397954]
[1724162512271,3.78924,2639.1,2638.2,0.607584]
[1724162512486,3.78924,2639.1,2638.5,3.78992]
[1724162512689,3.78932,2639.0,2638.3,3.79022]
[1724162512859,3.78924,2639.1,2638.4,3.79015]
[1724162513044,3.78973,2638.8,2638.2,3.79038]
[1724162513395,3.78973,2638.8,2638.0,3.79068]
[1724162513396,3.78986,2638.7,2638.0,3.79062]
[1724162513705,2.4499,2639.5,2638.1,0.379062]
[1724162513706,3.78971,2638.8,2638.1,0.379062]
[1724162513868,3.79006,2638.5,2637.8,6.79091]
[1724162514284,3.79006,2638.5,2637.7,2.4016]
[1724162514285,3.79055,2638.2,2637.7,2.4016]
[1724162514589,3.79055,2638.2,2637.5,3.79145]
[1724162514749,3.79055,2638.2,2637.4,2.3243]
[1724162514750,3.79076,2638.0,2637.4,6.11584]
[1724162514951,3.79055,2638.2,2637.6,3.7913]
[1724162515151,3.79055,2638.2,2637.4,3.37712639]
[1724162515350,3.79055,2638.2,2637.5,3.79134]
[1724162515555,3.79018,2638.4,2637.3,3.7917]
[1724162515762,3.79018,2638.4,2637.0,2.3248]
[1724162515763,3.79063,2638.1,2637.0,2.3248]
[1724162516086,3.79085,2638.0,2637.4,3.79156]
[1724162516274,3.7904,2638.3,2637.5,3.79143]
[1724162516473,6.78978,2638.7,2637.5,4.170523]
[1724162516474,3.0,2638.4,2637.5,4.170523]
[1724162516674,3.79034,2638.3,2637.7,3.79109]
[1724162517248,2.3207,2638.9,2638.0,3.79067]
[1724162517451,3.78983,2638.7,2638.0,3.79062]
[1724162517677,3.78983,2638.7,2637.8,3.79095]
[1724162517678,3.79013,2638.5,2637.8,3.79093]
[1724162517874,3.79011,2638.5,2637.9,3.79087]
[1724162518286,3.79029,2638.4,2637.8,8.205943]
[1724162518491,3.79011,2638.5,2637.8,4.415003]
[1724162518680,4.28235759,2639.8,2638.4,3.79009]
[1724162518681,3.78934,2639.0,2638.4,3.79009]
[1724162518881,3.78951,2638.9,2638.4,3.79009]
[1724162519081,3.78934,2639.0,2638.4,3.79008]
[1724162519390,3.78878,2639.4,2638.4,0.989172]
[1724162519391,3.78879,2639.4,2638.4,0.989172]
[1724162519609,3.78882,2639.4,2638.2,6.10161]
[1724162519814,3.78917,2639.1,2638.3,6.79023]
[1724162520046,3.78917,2639.1,2638.5,3.78994]
[1724162520192,3.78917,2639.1,2638.5,7.57988]
[1724162520399,3.78917,2639.1,2638.0,6.7907]
[1724162520400,3.78939,2639.0,2638.0,3.0]
[1724162520582,2.4385,2639.2,2637.8,6.734103]
[1724162520583,3.79025,2638.4,2637.8,6.734103]
[1724162520781,3.79025,2638.4,2637.8,0.624083]
[1724162520983,3.79064,2638.1,2637.8,0.624083]
[1724162521230,3.79064,2638.1,2637.5,6.489523]
[1724162521231,3.7901,2638.5,2637.7,3.79108]
[1724162521385,3.79044,2638.3,2637.7,3.79108]
[1724162521744,3.79089,2637.9,2637.5,2.698143]
[1724162521889,3.79036,2638.3,2637.5,2.698143]
[1724162522086,3.7901,2638.5,2637.7,3.79108]
[1724162522393,3.7901,2638.5,2637.9,7.58168]
[1724162522594,3.79033,2638.3,2637.7,7.58215]
[1724162522908,3.7901,2638.5,2637.7,8.59925643]
[1724162523086,2.4315,2638.8,2637.7,1.01709643]
[1724162523087,3.79041,2638.3,2637.7,1.01709643]
[1724162523409,3.79034,2638.3,2637.7,4.80817643]
[1724162523722,3.7904,2638.3,2637.7,4.80817643]
[1724162523940,3.7904,2638.3,2637.7,1.01709643]
[1724162524235,3.79062,2638.1,2637.7,1.01709643]
[1724162524439,3.79062,2638.1,2637.5,6.11041]
[1724162524440,3.79082,2638.0,2637.5,6.11046]
[1724162524640,3.79062,2638.1,2637.5,2.319]
[1724162524936,0.622115,2638.7,2637.3,6.79162]
[1724162524937,3.79091,2637.9,2637.3,6.79162]
[1724162525139,3.79091,2637.9,2637.4,19.54]
[1724162525140,3.79121,2637.7,2637.4,19.54]
[1724162525435,3.79094,2637.9,2637.4,19.54]
[1724162525637,2.313,2638.2,2637.4,19.54]
[1724162525841,0.6843265,2638.6,2637.7,3.7911]
[1724162525842,6.79009,2638.5,2637.7,3.7911]
[1724162526014,2.9973265,2638.6,2637.7,0.61097]
[1724162526203,3.78993,2638.6,2637.9,3.79082]
[1724162526540,3.78982,2638.7,2638.1,3.7905]
[1724162526835,2.4594,2639.0,2638.2,19.54]
[1724162527038,3.78981,2638.7,2638.2,19.54]
[1724162527402,6.24882,2639.0,2638.4,3.79008]
[1724162527604,3.78908,2639.2,2638.5,19.54]
[1724162527804,3.78926,2639.1,2638.5,27.11989]
[1724162528004,3.78908,2639.2,2638.6,2.711989]
[1724162528205,6.24511,2639.4,2638.6,2.711989]
[1724162528206,2.4563,2639.4,2638.6,2.711989]
[1724162528507,2.4563,2639.4,2638.6,26.041779]
[1724162528508,3.78918,2639.1,2638.6,26.041779]
[1724162528710,3.78918,2639.1,2638.6,22.251989]
[1724162528915,3.78974,2638.7,2638.6,19.54]
[1724162529474,7.57948,2638.7,2638.6,19.54]
[1724162529613,9.99878,2638.7,2638.6,19.54]
[1724162529814,3.79046,2638.2,2637.9,19.54]
[1724162530038,6.20904,2638.7,2638.0,19.54]
[1724162530039,3.79033,2638.3,2638.0,19.54]
[1724162530307,7.58103,2638.2,2638.1,19.54]
[1724162530750,0.758103,2638.2,2637.5,7.27]
[1724162530963,3.79119,2637.7,2637.3,19.54]
[1724162531112,3.79103,2637.8,2637.4,19.54]
[1724162531322,3.79078,2638.0,2637.4,19.54]
[1724162531525,7.58165,2638.0,2637.4,21.494]
[1724162531770,3.79078,2638.0,2637.4,21.494]
[1724162532331,3.79078,2638.0,2637.4,25.28558]
[1724162532638,7.58163,2638.0,2637.4,21.494]
[1724162532837,3.79048,2638.2,2637.5,3.79141]
[1724162533041,6.21603,2638.5,2637.9,3.79087]
[1724162533241,6.21603,2638.5,2637.6,24.344841]
[1724162533242,3.78997,2638.6,2638.0,23.33073]
[1724162533561,3.7902,2638.4,2638.0,19.54]
[1724162533942,2.4749,2638.6,2638.0,19.54]
[1724162534139,3.79026,2638.4,2638.0,19.54]
[1724162534538,3.7906,2638.1,2638.0,19.54]
[1724162534772,3.7901,2638.5,2638.0,19.54]
[1724162534934,3.7901,2638.5,2638.0,21.494]
[1724162535270,3.78982,2638.7,2638.0,21.494]
[1724162535440,3.78954,2638.9,2638.0,21.494]
[1724162535761,3.78954,2638.9,2638.3,3.79021]
[1724162535964,3.78954,2638.9,2638.3,7.58044]
[1724162536165,2.2939,2639.3,2638.4,0.991834]
[1724162536166,3.78908,2639.2,2638.4,0.991834]
[1724162536370,7.57991,2638.6,2638.4,19.54]
[1724162536541,3.78993,2638.6,2638.2,19.54]
[1724162536941,3.79011,2638.5,2638.2,19.54]
[1724162537141,3.78993,2638.6,2638.2,19.54]
[1724162537467,7.57992,2638.6,2638.2,19.54]
[1724162537629,3.78993,2638.6,2638.2,22.068466]
[1724162538036,3.79017,2638.4,2638.2,22.068466]
[1724162538372,3.78993,2638.6,2638.2,19.54]
[1724162538373,7.57992,2638.6,2638.2,19.54]
[1724162538570,7.57995,2638.6,2638.2,19.54]
[1724162538744,3.78993,2638.6,2638.2,19.54]
[1724162538996,3.78964,2638.8,2638.2,19.54]
[1724162539185,7.57934,2638.8,2638.2,23.33036]
[1724162539383,3.78989,2638.6,2638.2,19.54]
[1724162540284,7.57987,2638.6,2638.2,19.54]
[1724162540580,3.78989,2638.6,2638.2,19.54]
[1724162541121,3.79018,2638.4,2638.2,19.54]
[1724162541293,3.79,2638.6,2638.1,19.54]
[1724162541620,3.79046,2638.2,2638.1,19.54]
[1724162541811,7.58092,2638.2,2638.1,19.54]
[1724162542122,3.79007,2638.5,2638.1,19.54]
[1724162542418,3.79017,2638.4,2638.1,19.54]
[1724162542624,2.3221,2638.7,2638.1,19.54]
[1724162542625,3.79046,2638.2,2638.1,19.54]
[1724162543211,7.58092,2638.2,2638.1,19.54]
[1724162543413,3.79062,2638.1,2637.7,19.54]
[1724162543613,0.23221,2638.6,2637.6,9.7015]
[1724162543614,7.58202,2637.9,2637.8,19.54]
[1724162543806,3.79099,2637.9,2637.8,19.54]
[1724162544014,7.58202,2637.9,2637.8,19.54]
[1724162544527,7.58202,2637.9,2637.0,3.79212]
[1724162544528,3.79172,2637.4,2637.0,7.27]
[1724162544693,3.79172,2637.4,2637.0,19.54]
[1724162544895,3.7914,2637.6,2637.0,23.33204]
[1724162545096,3.7914,2637.6,2637.0,19.54]
[1724162545521,0.985202,2637.9,2636.6,3.79267]
[1724162545522,3.79194,2637.2,2636.6,3.79267]
[1724162545727,3.79207,2637.1,2636.7,0.621887]
[1724162546103,3.7923,2637.0,2636.7,0.621887]
[1724162546431,3.7923,2637.0,2636.5,2.4262]
[1724162546619,3.7919,2637.2,2636.5,2.4262]
[1724162546804,3.7919,2637.2,2636.5,10.01182]
[1724162547006,3.7919,2637.2,2636.6,3.79266]
[1724162547330,3.7919,2637.2,2636.5,6.21899]
[1724162547331,3.79199,2637.2,2636.5,6.21899]
[1724162547637,3.79168,2637.4,2636.6,0.621899]
[1724162547818,3.79203,2637.2,2636.6,0.621899]
[1724162548330,3.79227,2637.0,2636.6,0.621899]
[1724162548536,3.79233,2636.9,2636.5,2.4262]
[1724162548892,3.79227,2637.0,2636.5,2.4262]
[1724162549407,3.79227,2637.0,2636.5,6.21908]
[1724162550528,3.79227,2637.0,2636.5,2.4262]
[1724162551037,7.58456,2637.0,2636.5,2.4262]
[1724162551202,3.79227,2637.0,2636.6,0.54262]
[1724162552248,7.58339,2637.4,2636.8,3.79245]
[1724162552458,3.79164,2637.4,2636.6,0.54262]
[1724162552734,6.79114,2637.8,2637.0,3.79205]
[1724162552735,3.79111,2637.8,2637.0,3.79205]
[1724162552895,3.79111,2637.8,2637.1,3.79194]
[1724162553100,3.7906,2638.1,2637.4,3.79149]
[1724162553435,6.17172,2638.2,2637.4,6.07279]
[1724162553594,3.79052,2638.2,2637.6,3.79121]
[1724162554036,3.79032,2638.3,2637.8,3.79093]
[1724162554335,3.79032,2638.3,2637.7,3.79115]
[1724162554834,2.62501,2638.6,2637.7,3.79105]
[1724162554835,3.78993,2638.6,2637.7,3.79105]
[1724162555040,3.78993,2638.6,2637.5,0.607279]
[1724162555041,3.78993,2638.6,2637.9,3.79078]
[1724162555236,3.78965,2638.8,2638.1,3.7906]
[1724162555237,3.78978,2638.7,2638.1,3.7906]
[1724162555909,3.78965,2638.8,2638.1,3.79046]
[1724162556109,6.24906,2639.0,2638.3,3.79022]
[1724162556110,3.78936,2639.0,2638.3,3.79022]
[1724162556434,7.57818,2639.2,2638.5,3.79]
[1724162556643,3.78931,2639.0,2638.3,3.79021]
[1724162556793,3.78931,2639.0,2638.1,3.79055]
[1724162556794,4.168241,2639.0,2638.1,3.79055]
[1724162556999,3.78947,2638.9,2638.3,3.7902]
[1724162557199,3.7888,2639.4,2638.5,2.3234]
[1724162557402,3.78897,2639.3,2638.6,3.78976]
[1724162557628,3.7888,2639.4,2638.6,0.990328]
[1724162557830,3.78907,2639.2,2638.6,0.990328]
[1724162558032,3.78907,2639.2,2638.7,0.07578427]
[1724162558231,3.7888,2639.4,2638.7,3.78973]
[1724162558598,3.7888,2639.4,2638.6,0.990328]
[1724162558599,3.78906,2639.2,2638.6,4.780208]
[1724162559087,7.57766,2639.4,2638.7,4.8790938]
[1724162559242,7.57766,2639.4,2638.8,3.7895]
[1724162559243,3.7888,2639.4,2638.8,3.7895]
[1724162559747,3.78849,2639.6,2639.0,3.78931]
[1724162560149,3.78859,2639.5,2638.9,3.78943]
[1724162560472,3.78821,2639.8,2639.2,3.78902]
[1724162560763,4.38200591,2640.0,2639.3,3.78888]
[1724162560764,3.78793,2640.0,2639.3,3.78888]
[1724162560987,3.78766,2640.2,2639.4,2.278]
[1724162561264,3.78711,2640.6,2639.6,2.278]
[1724162561472,2.2804,2641.0,2639.6,6.06637]
[1724162561675,3.78746,2640.3,2639.8,3.78805]
[1724162561844,3.78739,2640.4,2639.8,3.7881]
[1724162562174,3.78705,2640.6,2639.9,0.37881]
[1724162562377,3.78721,2640.5,2639.9,0.37881]
[1724162562670,3.7868,2640.8,2640.0,2.488]
[1724162562875,7.57364,2640.8,2640.1,3.78764]
[1724162563073,3.7865,2641.0,2640.1,3.78764]
[1724162563259,3.7865,2641.0,2640.2,0.627564]
[1724162563462,3.7865,2641.0,2640.3,3.78736]
[1724162563645,3.7865,2641.0,2640.2,0.627564]
[1724162563646,3.78622,2641.2,2640.6,3.78701]
[1724162564066,3.78622,2641.2,2640.7,3.78685]
[1724162564450,3.78644,2641.0,2640.6,2.2739]
[1724162564650,3.78644,2641.0,2640.6,2.879995]
[1724162564850,3.78622,2641.2,2640.6,2.879995]
[1724162565052,3.78622,2641.2,2640.6,6.666865]
[1724162565778,3.78544,2641.7,2641.0,3.78631]
[1724162565953,3.78509,2642.0,2641.2,3.78605]
[1724162565954,3.78525,2641.9,2641.2,3.78605]
[1724162566287,3.78552,2641.7,2641.1,2.3311]
[1724162566589,2.4817,2642.2,2640.8,3.0]
[1724162566590,3.78615,2641.3,2640.8,3.0]
[1724162566889,3.78578,2641.5,2640.9,3.78658]
[1724162567052,4.164358,2641.5,2640.9,3.78658]
[1724162567257,3.7856,2641.6,2640.9,3.78658]
[1724162567451,3.78582,2641.5,2640.9,3.78658]
[1724162567654,3.78582,2641.5,2640.9,7.57308]
[1724162567986,3.7856,2641.6,2640.9,3.78649]
[1724162568188,7.57023,2642.0,2641.3,3.78591]
[1724162568394,3.78573,2641.5,2641.3,2.3101]
[1724162568563,1.005193,2642.0,2640.9,2.3101]
[1724162568765,3.78476,2642.2,2640.7,3.78681]
[1724162568766,3.78619,2641.2,2640.7,3.78681]
[1724162568996,3.78619,2641.2,2640.6,6.09703]
[1724162569193,2.4944,2641.8,2640.7,6.78677]
[1724162569194,3.78603,2641.3,2640.7,6.78677]
[1724162569408,2.4944,2641.8,2640.7,3.0]
[1724162569409,3.78623,2641.2,2640.7,3.0]
[1724162569601,3.78623,2641.2,2640.7,0.909716]
[1724162569787,3.78646,2641.0,2640.7,0.909716]
[1724162570183,3.78623,2641.2,2640.7,0.909716]
[1724162570685,3.78646,2641.0,2640.7,0.909716]
[1724162570909,7.5725,2641.2,2640.6,6.09711]
[1724162573517,3.78649,2641.0,2640.4,4.770681]
[1724162573729,3.78637,2641.1,2640.4,4.770681]
[1724162573934,3.78637,2641.1,2640.4,0.983401]
[1724162574131,2.2533,2641.6,2640.4,0.983401]
[1724162574132,7.57341,2640.9,2640.4,0.983401]
[1724162574320,3.78669,2640.9,2640.4,0.983401]
[1724162574903,3.78645,2641.0,2640.4,4.770611]
[1724162575095,3.7866,2640.9,2640.4,4.770611]
[1724162575925,3.7866,2640.9,2640.4,0.983401]
[1724162576145,3.78673,2640.8,2640.4,0.983401]
[1724162576593,3.78654,2641.0,2640.4,0.983401]
[1724162576795,3.7866,2640.9,2640.4,4.770691]
[1724162577271,3.78638,2641.1,2640.4,8.557791]
[1724162577471,3.78657,2641.0,2640.4,4.770571]
[1724162577769,3.78645,2641.0,2640.5,20.2429771]
[1724162577971,3.78641,2641.1,2640.5,24.0301271]
[1724162578172,3.78641,2641.1,2640.6,3.78698]
[1724162578672,7.57283,2641.1,2640.5,20.2429771]
[1724162578979,3.78639,2641.1,2640.6,2.50135681]
[1724162579170,3.78639,2641.1,2640.6,6.28835681]
[1724162579575,3.78608,2641.3,2640.6,6.28835681]
[1724162579874,3.7858,2641.5,2640.6,2.50135681]
[1724162580175,3.7858,2641.5,2640.8,3.78659]
[1724162580377,3.78595,2641.4,2640.8,3.78659]
[1724162580551,3.7858,2641.5,2640.9,3.78658]
[1724162580751,3.78587,2641.4,2640.8,7.57323]
[1724162580981,3.78605,2641.3,2640.7,2.27443339]
[1724162581304,7.57307,2641.0,2640.5,20.2429771]
[1724162581592,7.5725,2641.2,2640.5,20.2429771]
[1724162581743,10.02583,2641.4,2640.8,3.78672]
[1724162581938,3.78593,2641.4,2640.9,0.378672]
[1724162582143,3.78583,2641.5,2640.9,0.378672]
[1724162582343,3.78567,2641.6,2641.0,3.78635]
[1724162582565,3.78574,2641.5,2641.0,3.78635]
[1724162582879,3.78567,2641.6,2640.9,2.706472]
[1724162583078,3.78587,2641.4,2640.9,2.706472]
[1724162583278,3.78587,2641.4,2640.9,0.378672]
[1724162583484,3.78587,2641.4,2640.9,3.78649]
[1724162583785,3.78587,2641.4,2640.5,20.2429771]
[1724162583786,7.74,2641.6,2640.5,0.7029771]
[1724162583967,7.74,2641.6,2640.3,2.4604]
[1724162583968,3.78696,2640.7,2640.3,2.4604]
[1724162584140,3.78665,2640.9,2640.3,6.24777]
[1724162584545,3.78665,2640.9,2640.4,3.78725]
[1724162584940,3.78665,2640.9,2640.3,6.24777]
[1724162585178,2.3881,2641.2,2640.3,7.978314]
[1724162585179,3.78654,2641.0,2640.3,7.978314]
[1724162585364,3.78666,2640.9,2640.3,11.765644]
[1724162585567,3.78666,2640.9,2640.3,7.978294]
[1724162585946,3.78673,2640.8,2640.3,1.730544]
[1724162586170,3.78673,2640.8,2640.2,11.05758]
[1724162586171,3.78713,2640.6,2640.2,7.27]
[1724162586488,10.1281,2641.2,2640.3,19.54]
[1724162586489,7.57365,2640.8,2640.3,19.54]
[1724162586789,3.78704,2640.6,2640.3,19.54]
[1724162587195,3.78704,2640.6,2640.3,21.872764]
[1724162587346,3.78681,2640.8,2640.3,21.872764]
[1724162587995,3.78717,2640.5,2640.3,21.872764]
[1724162588302,3.78716,2640.5,2640.3,19.54]
[1724162588496,3.78705,2640.6,2639.9,9.7304]
[1724162588497,3.78701,2640.6,2639.9,9.7304]
[1724162588712,3.7872,2640.5,2639.9,7.27]
[1724162589047,3.78693,2640.7,2640.0,3.78784]
[1724162589198,3.78702,2640.6,2640.1,1.105784]
[1724162589363,7.57391,2640.7,2640.1,4.893494]
[1724162589563,3.78693,2640.7,2640.1,4.893494]
[1724162589796,2.2884,2641.0,2640.2,3.78754]
[1724162590004,3.78673,2640.8,2640.3,3.78742]
[1724162590317,3.78673,2640.8,2640.4,0.99616]
[1724162590514,3.78671,2640.9,2640.4,0.99616]
[1724162590665,3.78681,2640.8,2640.4,0.99616]
[1724162590863,3.78688,2640.7,2640.4,0.99616]
[1724162592390,3.78688,2640.7,2640.5,19.54]
[1724162592962,3.78688,2640.7,2640.5,21.593616]
[1724162593710,3.78673,2640.8,2640.5,21.593616]
[1724162593886,3.78688,2640.7,2640.5,21.593616]
[1724162594107,7.57383,2640.7,2640.5,19.54]
[1724162594425,7.57402,2640.6,2640.5,19.54]
[1724162595076,3.78701,2640.6,2640.5,19.54]
[1724162595281,3.7866,2640.9,2640.5,21.494]
[1724162595507,3.78674,2640.8,2640.5,21.494]
[1724162595743,3.78646,2641.0,2640.5,21.494]
[1724162595892,3.78661,2640.9,2640.5,21.494]
[1724162596754,3.78681,2640.8,2640.5,21.494]
[1724162596893,3.78701,2640.6,2640.5,19.54]
[1724162597792,2.4982,2640.8,2640.0,19.54]
[1724162597793,3.78719,2640.5,2640.0,19.54]
[1724162598003,3.78768,2640.2,2640.0,22.75416]
[1724162598291,3.78745,2640.3,2640.0,22.75416]
[1724162598517,3.78745,2640.3,2640.0,19.54]
[1724162599163,3.7874,2640.4,2640.0,19.54]
[1724162599632,3.78674,2640.8,2640.2,3.78746]
[1724162599824,14.52628,2641.2,2640.4,3.7873]
[1724162599825,3.7867,2640.9,2640.4,3.7873]
[1724162600124,3.78652,2641.0,2640.4,6.73926]
[1724162600327,3.78662,2640.9,2640.5,3.78716]
[1724162600715,3.78662,2640.9,2640.4,6.73934]
[1724162601025,3.78689,2640.7,2640.3,19.54]
[1724162601229,3.78633,2641.1,2640.3,19.54]
[1724162601390,3.78688,2640.7,2640.3,19.54]
[1724162602203,3.78661,2640.9,2640.3,19.54]
[1724162602407,3.78661,2640.9,2640.4,3.78722]
[1724162602607,3.78661,2640.9,2640.5,2.332722]
[1724162603206,3.78638,2641.1,2640.5,6.119882]
[1724162603207,3.78644,2641.0,2640.5,6.119882]
[1724162603609,3.78612,2641.3,2640.6,3.78698]
[1724162603808,3.78651,2641.0,2640.7,19.54]
[1724162607410,3.78616,2641.2,2640.9,19.54]
[1724162608739,3.78596,2641.4,2640.9,19.54]
[1724162609153,3.78606,2641.3,2640.9,19.54]
[1724162609841,3.78606,2641.3,2640.9,23.32657]
[1724162610065,3.78606,2641.3,2641.0,2.332657]
[1724162610345,3.78606,2641.3,2641.0,2.33168024]
[1724162610556,3.78606,2641.3,2641.0,21.87168024]
[1724162611712,3.78524,2641.9,2641.1,2.2809]
[1724162612040,3.78524,2641.9,2641.4,3.78579]
[1724162612556,3.78523,2641.9,2641.3,3.78589]
[1724162612721,3.78523,2641.9,2641.3,7.57179]
[1724162612923,3.78523,2641.9,2641.4,2.13598809]
[1724162613755,7.57048,2641.9,2641.4,2.13598809]
[1724162613959,3.78523,2641.9,2641.4,2.13598809]
[1724162614203,3.78523,2641.9,2641.4,5.92183809]
[1724162614861,3.78474,2642.2,2641.5,3.78559]
[1724162615062,3.78435,2642.5,2641.8,3.78527]
[1724162615260,3.78435,2642.5,2641.9,19.54]
[1724162615422,3.78453,2642.4,2641.9,19.54]
[1724162616246,10.03787,2642.7,2642.0,23.325]
[1724162616560,3.78406,2642.7,2642.0,23.325]
[1724162616762,3.78406,2642.7,2642.1,23.32484]
[1724162617120,3.78377,2642.9,2642.2,6.14159]
[1724162617326,3.78377,2642.9,2642.2,2.3569]
[1724162617563,3.78377,2642.9,2642.3,3.78448]
[1724162618077,3.78263,2643.7,2642.9,3.7836]
[1724162618377,3.78253,2643.8,2643.1,3.78342]
[1724162618673,2.4068,2644.0,2643.1,3.78342]
[1724162618860,3.78217,2644.0,2643.4,3.783]
[1724162619026,3.7823,2643.9,2643.2,4.443038]
[1724162619226,3.78204,2644.1,2643.3,3.78313]
[1724162619838,2.4068,2644.4,2643.5,3.78286]
[1724162619839,3.78187,2644.2,2643.5,3.78286]
[1724162620047,3.78187,2644.2,2643.5,4.783049]
[1724162620240,3.78173,2644.3,2643.6,3.78266]
[1724162620455,3.78173,2644.3,2643.5,4.783049]
[1724162620652,3.78233,2643.9,2643.2,0.659768]
[1724162620853,3.782,2644.1,2643.0,2.4528]
[1724162621142,3.78174,2644.3,2643.5,3.78284]
[1724162621375,3.78174,2644.3,2643.5,4.161124]
[1724162621577,2.4068,2644.4,2643.6,6.2355]
[1724162621755,6.1884,2644.4,2643.8,3.78242]
[1724162622354,3.78177,2644.3,2643.6,6.2355]
[1724162622579,3.78196,2644.2,2643.5,0.378284]
[1724162622878,3.78196,2644.2,2643.5,3.78285]
[1724162623066,6.18845,2644.4,2643.7,3.78257]
[1724162623777,3.78173,2644.3,2643.5,3.78285]
[1724162623993,3.78155,2644.5,2643.8,3.78241]
[1724162624656,3.78155,2644.5,2643.3,2.4528]
[1724162624657,12.94916,2644.7,2643.9,3.78216]
[1724162624850,3.78129,2644.6,2643.9,3.78216]
[1724162625184,3.78145,2644.5,2644.0,19.54]
[1724162625344,3.7816,2644.4,2644.0,19.54]
[1724162625753,7.5633,2644.4,2644.0,19.54]
[1724162625961,3.7816,2644.4,2644.0,19.54]
[1724162626199,3.78189,2644.2,2644.0,19.54]
[1724162626357,7.56335,2644.4,2644.0,19.54]
[1724162626558,3.78164,2644.4,2644.0,19.54]
[1724162626952,3.78135,2644.6,2644.0,21.865]
[1724162626953,3.7814,2644.6,2644.0,21.865]
[1724162627282,6.78128,2644.7,2644.0,25.64705]
[1724162627482,3.78128,2644.7,2644.0,28.589975]
[1724162627693,3.78128,2644.7,2644.1,3.78199]
[1724162627861,3.78128,2644.7,2644.2,19.54]
[1724162628058,3.78128,2644.7,2644.2,23.32185]
[1724162628284,3.78128,2644.7,2644.1,3.78199]
[1724162628285,3.7809,2644.9,2644.3,19.54]
[1724162628489,6.05331,2645.0,2644.4,3.78148]
[1724162628784,6.05331,2645.0,2644.3,21.872192]
[1724162628785,3.78102,2644.8,2644.3,21.872192]
[1724162628942,7.56212,2644.8,2644.3,21.872192]
[1724162629143,3.78116,2644.7,2644.3,21.872192]
[1724162629346,3.78102,2644.8,2644.3,21.872192]
[1724162629546,7.56216,2644.8,2644.3,21.872192]
[1724162629798,3.7813,2644.6,2644.3,19.54]
[1724162630171,3.78157,2644.4,2644.3,19.54]
[1724162630353,3.7813,2644.6,2644.3,19.54]
[1724162630546,3.78107,2644.8,2644.3,19.54]
[1724162630547,3.78108,2644.8,2644.3,19.54]
[1724162632896,7.56296,2644.5,2644.3,19.54]
[1724162633120,3.78157,2644.4,2644.3,19.54]
[1724162633614,3.78143,2644.5,2644.3,19.54]
[1724162633832,3.78123,2644.7,2644.3,19.54]
[1724162633980,7.56246,2644.7,2644.3,19.54]
[1724162634175,2.2726,2645.0,2644.2,19.54]